[Event "44th Chess Olympiad Women 2022"]
[Site "Chennai"]
[Date "2022.08.02"]
[Round "5.45"]
[White "Kaslan, Catherine"]
[Black "Cooke, Suzie G."]
[Result "1-0"]
[ECO "C06"]
[WhiteElo "1872"]
[BlackElo "1936"]
[Annotator "TA"]
[PlyCount "83"]
[EventDate "2022.07.29"]
[EventType "team-tourn"]
[EventCountry "IND"]
[SourceTitle "playchess.com"]
[Source "ChessBase"]
[SourceQuality "1"]
[WhiteTeam "Surinam"]
[BlackTeam "Scotland"]
[WhiteTeamCountry "SUR"]
[BlackTeamCountry "SCO"]
[TimeControl "40/5400+30:1800+30"]

{[%evp 22,83,51,41,38,0,2,4,26,-108,0,0,29,17,8,0,103,99,100,105,166,101,95,101,130,111,181,87,288,225,383,388,29990,29991,29991,29992,29992,29992,29992,29993,29993,543,824,419,582,570,556,512,511,493,493,404,749,761,752,745,702,652,923,923,2049,1965,1788,1625]} 1. e4 {[%emt 0:00:06]} e6 {[%emt 0:00:12]} 2. d4 {[%emt 0:00:11]} d5 {[%emt 0:00:06]} 3. Nd2 {[%emt 0:00:26]} Nf6 {[%emt 0:00:23]} 4. e5 {[%emt 0:00:29]} Nfd7 {[%emt 0:00:14]} 5. Bd3 {[%emt 0:01:17]} c5 {[%emt 0:00:22]} 6. c3 {[%emt 0:00:15]} Nc6 {[%emt 0:00:26]} 7. Ne2 {[%emt 0:00:19]} cxd4 {[%emt 0:00:34]} 8. cxd4 {[%emt 0:00:30]} f6 {[%emt 0:02:19]} 9. exf6 {[%emt 0:04:57]} Nxf6 {[%emt 0:00:20]} 10. Nf3 {[%emt 0:03:17]} Bd6 {[%emt 0:01:45]} 11. O-O {[%emt 0:03:32]} Qc7 {[%emt 0:00:51]} 12. a3 {[%emt 0:07:00]} O-O {[%emt 0:01:57] C06: French Tarrasch: 3...Nf6 4 e5 Nfd7 5 Bd3 main lines.} 13. Re1 {[%emt 0:13:00]} e5 {[%emt 0:08:45]} 14. dxe5 {[%emt 0:14:37]} Nxe5 {[%emt 0:01:20] The position is equal.} 15. Ned4 {[%emt 0:09:48] [#]} (15. Nxe5 $11 {keeps the balance.} Bxe5 16. h3) 15... Nxd3 $146 {[%emt 0:19:51]} (15... Nfg4 $17 {White must now prevent ...Nxf3+.} 16. Bb1 Nxf3+ 17. Nxf3 Bxh2+ 18. Kf1 Qd6) ({Predecessor:} 15... Nxf3+ 16. Nxf3 Bg4 17. Be2 Bxf3 18. Bxf3 Bxh2+ 19. Kh1 Bf4 20. Bxd5+ Kh8 21. Bf3 Rae8 22. Bxf4 Qxf4 {0-1 (62) Naveen,A-Arribas Lopez,A (2434) Chess.com INT 2020}) 16. Qxd3 $11 {[%emt 0:00:12]} Qf7 {[%emt 0:23:04]} (16... Ng4 $5 {[%cal Rd6h2]}) 17. Bg5 {[%emt 0:10:09]} Ne4 {[%emt 0:05:55]} 18. Bh4 {[%emt 0:10:04] Active counter play!} Bf5 {[%emt 0:03:52]} (18... Bg4 $11 {remains equal.}) 19. Nxf5 $16 {[%emt 0:01:08]} Qxf5 {[%emt 0:00:06]} 20. Rad1 {[%emt 0:01:11]} Bc7 {[%emt 0:16:06] [#]} (20... Rae8 $16) 21. Qxd5+ {[%emt 0:00:59]} (21. Qb5 $1 $18) 21... Qxd5 {[%emt 0:00:02]} 22. Rxd5 {[%emt 0:00:08]} Nf6 {[%emt 0:00:05]} 23. Bxf6 {[%emt 0:01:16]} Rxf6 {[%emt 0:00:21]} (23... gxf6 $16 {is a better defense.} 24. Re7 Rad8 25. Rxd8 Rxd8) 24. Rd7 {[%emt 0:00:52]} (24. Re7 $18 {is more deadly.} Rd8 25. Rxd8+ Bxd8 26. Rxb7) 24... Rc6 {[%emt 0:01:40] This costs Black the game.} (24... Rf7 $16 {was necessary.} 25. Ree7 Rxe7 26. Rxe7 Bb6) 25. g3 {[%emt 0:02:55] [#] Ree7 is the strong threat.} Bb6 $2 {[%emt 0:03:00]} (25... Bd6 26. Rd1 Bc5 27. Rxb7 Rf8) 26. Ree7 $18 {[%emt 0:03:16]} Rc2 $2 {[%emt 0:01:12]} (26... Rg6 $18 27. Rxb7 Bc5) 27. Rxg7+ {[%emt 0:00:53]} Kh8 {[%emt 0:00:41]} 28. Rxh7+ {[%emt 0:00:27]} Kg8 {[%emt 0:00:02]} 29. Rdg7+ {[%emt 0:01:00]} Kf8 {[%emt 0:00:03]} 30. Rf7+ {[%emt 0:00:32]} Kg8 {[%emt 0:00:26]} 31. Ng5 {[%emt 0:00:57]} (31. Ne5 $142 Bxf2+ 32. Kf1 Rc1+ 33. Kxf2 Rc2+ 34. Kf3 Rf2+ 35. Kxf2 Rd8 36. Rhg7+ Kh8 37. Ng6#) 31... Re8 {[%emt 0:01:19]} 32. Rhg7+ {[%emt 0:02:38]} Kh8 {[%emt 0:00:04][%cal Ob6f2]} 33. Rg6 {[%emt 0:00:14][%csl Gg5][%cal Rf7h7]} Rc7 {[%emt 0:02:20]} 34. Rxc7 {[%emt 0:00:07]} Bxc7 {[%emt 0:00:07][%mdl 4096] Endgame KRB-KRN} 35. Re6 {[%emt 0:00:40]} Rc8 {[%emt 0:01:40]} 36. Nf7+ {[%emt 0:02:42]} Kg7 {[%emt 0:01:06]} (36... Kg8 $142 37. Nd6 Rd8 38. Nxb7 Rd2) 37. Nd6 {[%emt 0:00:28] White is clearly winning.} Bxd6 {[%emt 0:00:48]} 38. Rxd6 {[%emt 0:00:06]} Rc7 {[%emt 0:00:09]} 39. h4 {[%emt 0:00:30]} b5 {[%emt 0:00:30]} 40. b4 {[%emt 0:00:51][%cal Bb2b4,Bb4a5,Ba5a6][%mdl 32]} a5 {[%emt 0:00:16]} 41. bxa5 {[%emt 0:30:42]} Ra7 {[%emt 0:30:22]} 42. a6 {[%emt 0:00:19] Weighted Error Value: White=0.74/Black=0.84} 1-0

[Event "44th Chess Olympiad Women 2022"]
[Site "Chennai"]
[Date "2022.08.02"]
[Round "5.45"]
[White "Reid, Caitlin"]
[Black "Creebsburg, Shefali"]
[Result "1-0"]
[ECO "C42"]
[WhiteElo "1437"]
[BlackElo "1151"]
[Annotator "NA RC COMBH"]
[PlyCount "119"]
[EventDate "2022.07.29"]
[EventType "team-tourn"]
[EventCountry "IND"]
[SourceTitle "playchess.com"]
[Source "ChessBase"]
[SourceQuality "1"]
[WhiteTeam "Scotland"]
[BlackTeam "Surinam"]
[WhiteTeamCountry "SCO"]
[BlackTeamCountry "SUR"]
[TimeControl "40/5400+30:1800+30"]

1. e4 {[%emt 1:31:00]} e5 {[%emt 1:31:00]} 2. Nf3 {[%emt 0:00:00]} Nf6 {[%emt 0:00:00]} 3. Bc4 {[%emt 0:00:00]} h6 {[%emt 0:00:00]} 4. Nxe5 {[%emt 0:00:00]} d5 {[%emt 0:00:00]} 5. exd5 {[%emt 0:00:00]} Nxd5 {[%emt 0:00:00]} 6. Nc3 {[%emt 0:00:00]} Be6 {[%emt 0:00:00]} 7. Qf3 {[%emt 0:00:00]} c6 {[%emt 0:00:00]} 8. O-O {[%emt 0:00:00]} Qf6 {[%emt 0:00:00]} 9. Nxd5 {[%emt 0:00:00]} Qxe5 {[%emt 0:00:00]} 10. Ne3 {[%emt 0:00:00]} Bd6 {[%emt 0:00:00]} 11. g3 {[%emt 0:00:00]} O-O {[%emt 0:00:00]} 12. d3 {[%emt 0:00:00]} Nd7 {[%emt 0:00:00]} 13. c3 {[%emt 0:00:00]} Bc7 {[%emt 0:00:00]} 14. Bd2 {[%emt 0:00:00]} Bxc4 {[%emt 0:00:00]} 15. Nxc4 {[%emt 0:00:00]} Qf6 {[%emt 0:00:00]} 16. Qg4 {[%emt 0:00:00]} Qe6 {[%emt 0:00:00]} 17. Qxe6 {[%emt 0:00:00]} fxe6 {[%emt 0:00:00]} 18. Rfe1 {[%emt 0:00:00]} Rae8 {[%emt 0:00:00]} 19. Re2 {[%emt 0:00:00]} b5 {[%emt 0:00:00]} 20. Ne3 {[%emt 0:00:00]} Nc5 {[%emt 0:00:00]} 21. d4 {[%emt 0:00:00]} Ne4 {[%emt 0:00:00]} 22. Bc1 {[%emt 0:00:00]} Bb6 {[%emt 0:00:00]} 23. Ng4 {[%emt 0:00:00]} Ng5 {[%emt 0:00:00]} 24. Bxg5 {[%emt 0:00:00]} hxg5 {[%emt 0:00:00]} 25. Ne5 {[%emt 0:00:00]} c5 {[%emt 0:00:00]} 26. dxc5 {[%emt 0:00:00]} Bc7 {[%emt 0:00:00]} 27. Nd7 {[%emt 0:00:00]} Rf5 {[%emt 0:00:00]} 28. Rae1 {[%emt 0:00:00]} e5 {[%emt 0:00:00]} 29. c6 {[%emt 0:00:00]} g4 {[%emt 0:00:00]} 30. Re4 {[%emt 0:00:00]} Rg5 {[%emt 0:00:00]} 31. a4 {[%emt 0:00:00]} bxa4 {[%emt 0:00:00]} 32. Rxa4 {[%emt 0:00:00]} a5 {[%emt 0:00:00]} 33. b4 {[%emt 0:00:00]} axb4 {[%emt 0:00:00]} 34. cxb4 {[%emt 0:00:00]} e4 {[%emt 0:00:00]} 35. Ra7 {[%emt 0:00:00]} Bd6 {[%emt 0:00:00]} 36. Rb1 {[%emt 0:00:00]} Rb5 {[%emt 0:00:04]} 37. Rb7 {[%emt 0:00:00]} Rxb7 {[%emt 0:01:14]} 38. cxb7 {[%emt 0:00:00]} Rd8 {[%emt 0:01:01]} 39. b8=Q {[%emt 0:00:00]} Bxb8 {[%emt 0:00:12]} 40. Nxb8 {[%emt 0:00:00]} Rxb8 {[%emt 0:00:08]} 41. b5 {[%emt 0:15:48]} Kf7 {[%emt 0:30:41]} 42. Kf1 {[%emt 0:00:07]} Ke6 {[%emt 0:00:27]} 43. Ke2 {[%emt 0:00:18]} Kd5 {[%emt 0:01:10]} 44. Ke3 {[%emt 0:00:15]} Ke5 {[%emt 0:01:06]} 45. b6 {[%emt 0:00:18]} g5 {[%emt 0:03:38]} 46. Rb5+ {[%emt 0:00:53]} Kf6 {[%emt 0:00:17]} 47. Kxe4 {[%emt 0:00:57]} Re8+ {[%emt 0:00:27]} 48. Kd5 {[%emt 0:00:46]} Re5+ {[%emt 0:00:28]} 49. Kc6 {[%emt 0:00:11]} Re6+ {[%emt 0:00:29]} 50. Kb7 {[%emt 0:00:21]} Re7+ {[%emt 0:00:13]} 51. Ka6 {[%emt 0:00:12]} Re6 {[%emt 0:04:08]} 52. Ka7 {[%emt 0:00:19]} Re7+ {[%emt 0:04:24]} 53. b7 {[%emt 0:00:11]} Kg6 {[%emt 0:00:32]} 54. Ka8 {[%emt 0:00:24]} Re2 {[%emt 0:02:06]} 55. b8=Q {[%emt 0:00:40]} Rxf2 {[%emt 0:00:20]} 56. Rb6+ {[%emt 0:00:16]} Kf7 {[%emt 0:02:59]} 57. Qc7+ {[%emt 0:00:07]} Kg8 {[%emt 0:00:22]} 58. Rb8+ {[%emt 0:00:09]} Rf8 {[%emt 0:00:14]} 59. Rxf8+ {[%emt 0:00:55]} Kxf8 {[%emt 0:00:30]} 60. Kb8 {[%emt 0:00:07]} 1-0

[Event "44th Chess Olympiad Women 2022"]
[Site "Chennai"]
[Date "2022.08.02"]
[Round "5.45"]
[White "Wijnhard, Joelle"]
[Black "Hughes, Rhian"]
[Result "0-1"]
[ECO "B01"]
[WhiteElo "1291"]
[BlackElo "1843"]
[Annotator "NA RC COMBH"]
[PlyCount "74"]
[EventDate "2022.07.29"]
[EventType "team-tourn"]
[EventCountry "IND"]
[SourceTitle "playchess.com"]
[Source "ChessBase"]
[SourceQuality "1"]
[WhiteTeam "Surinam"]
[BlackTeam "Scotland"]
[WhiteTeamCountry "SUR"]
[BlackTeamCountry "SCO"]
[TimeControl "40/5400+30:1800+30"]

1. e4 {[%emt 0:00:03]} d5 {[%emt 0:00:06]} 2. exd5 {[%emt 0:00:22]} Qxd5 {[%emt 0:00:06]} 3. Nc3 {[%emt 0:00:24]} Qa5 {[%emt 0:00:08]} 4. Nf3 {[%emt 0:00:54]} Nf6 {[%emt 0:00:07]} 5. Be2 {[%emt 0:00:59]} c6 {[%emt 0:00:18]} 6. O-O {[%emt 0:01:21]} Bf5 {[%emt 0:00:48]} 7. d3 {[%emt 0:01:25]} e6 {[%emt 0:00:17]} 8. Bf4 {[%emt 0:03:28]} Be7 {[%emt 0:01:13]} 9. Re1 {[%emt 0:04:10]} Nbd7 {[%emt 0:00:21]} 10. h3 {[%emt 0:03:40]} O-O {[%emt 0:01:07]} 11. a3 {[%emt 0:05:16]} Qd8 {[%emt 0:07:06]} 12. Qc1 {[%emt 0:11:18]} Re8 {[%emt 0:02:16]} 13. Bf1 {[%emt 0:06:45]} Nd5 {[%emt 0:04:16]} 14. Bd2 {[%emt 0:04:06]} Nxc3 {[%emt 0:12:10]} 15. Bxc3 {[%emt 0:01:00]} Bf6 {[%emt 0:01:46]} 16. Ne5 {[%emt 0:10:42]} Nxe5 {[%emt 0:02:26]} 17. Bxe5 {[%emt 0:01:05]} Bxe5 {[%emt 0:00:54]} 18. Rxe5 {[%emt 0:00:18]} Qd4 {[%emt 0:01:41]} 19. Re3 {[%emt 0:03:55]} e5 {[%emt 0:03:29]} 20. Rf3 {[%emt 0:08:56]} Bg6 {[%emt 0:00:29]} 21. Rg3 {[%emt 0:07:15]} Re6 {[%emt 0:03:50]} 22. Rb1 {[%emt 0:04:12]} Rae8 {[%emt 0:00:34]} 23. Qe3 {[%emt 0:01:39]} Qa4 {[%emt 0:01:53]} 24. Qd2 {[%emt 0:02:54]} c5 {[%emt 0:04:04]} 25. Rg4 {[%emt 0:02:10]} Qc6 {[%emt 0:01:06]} 26. Rg3 {[%emt 0:03:01]} b5 {[%emt 0:01:21]} 27. b3 {[%emt 0:01:44]} f5 {[%emt 0:03:15]} 28. Re3 {[%emt 0:01:30]} f4 {[%emt 0:06:11]} 29. Ree1 {[%emt 0:01:08]} f3 {[%emt 0:01:45]} 30. g3 {[%emt 0:01:01]} Bf5 {[%emt 0:03:20]} 31. Re3 {[%emt 0:01:50]} Rh6 {[%emt 0:05:54]} 32. Kh2 {[%emt 0:01:07]} Bxh3 {[%emt 0:00:39]} 33. Bxh3 {[%emt 0:00:28]} Qe6 {[%emt 0:00:20]} 34. g4 {[%emt 0:00:47]} Qxg4 {[%emt 0:00:16]} 35. Rxf3 {[%emt 0:04:29]} Qxf3 {[%emt 0:00:09]} 36. Qe3 {[%emt 0:01:06]} Rxh3+ {[%emt 0:00:06]} 37. Kg1 {[%emt 0:00:07]} Qh1# {[%emt 0:00:08]} 0-1

[Event "44th Chess Olympiad Women 2022"]
[Site "Chennai"]
[Date "2022.08.02"]
[Round "5.46"]
[White "Mouradian, Knarik"]
[Black "Seine, Rose Berline"]
[Result "1-0"]
[ECO "C24"]
[WhiteElo "2121"]
[BlackElo "1679"]
[Annotator "NA RC"]
[PlyCount "103"]
[EventDate "2022.07.29"]
[EventType "team-tourn"]
[EventCountry "IND"]
[SourceTitle "playchess.com"]
[Source "ChessBase"]
[SourceQuality "1"]
[WhiteTeam "Lebanon"]
[BlackTeam "Haiti"]
[WhiteTeamCountry "LBN"]
[BlackTeamCountry "HAI"]
[TimeControl "40/5400+30:1800+30"]

1. e4 {[%emt 0:00:06]} e5 {[%emt 0:00:04]} 2. Bc4 {[%emt 0:00:27]} Nf6 {[%emt 0:04:07]} 3. d3 {[%emt 0:00:28]} c6 {[%emt 0:00:12]} 4. Nf3 {[%emt 0:01:35]} d5 {[%emt 0:00:12]} 5. Bb3 {[%emt 0:00:46]} Bd6 {[%emt 0:01:55]} 6. Nc3 {[%emt 0:02:20]} h6 {[%emt 0:02:17]} 7. exd5 {[%emt 0:11:15]} cxd5 {[%emt 0:00:08]} 8. Bxd5 {[%emt 0:04:42]} Nxd5 {[%emt 0:00:08]} 9. Nxd5 {[%emt 0:00:07]} O-O {[%emt 0:00:26]} 10. O-O {[%emt 0:05:57]} Nc6 {[%emt 0:00:02]} 11. h3 {[%emt 0:06:37]} Be6 {[%emt 0:00:07]} 12. Nc3 {[%emt 0:05:36]} Rc8 {[%emt 0:00:06]} 13. Ne4 {[%emt 0:12:39]} Bb8 {[%emt 0:00:02]} 14. c3 {[%emt 0:08:23]} Qc7 {[%emt 0:00:46]} 15. Re1 {[%emt 0:06:13]} Rcd8 {[%emt 0:01:02]} 16. Qe2 {[%emt 0:01:59]} b6 {[%emt 0:01:01]} 17. Ng3 {[%emt 0:05:01]} Rd7 {[%emt 0:00:32]} 18. Nh5 {[%emt 0:12:36]} f5 {[%emt 0:03:54]} 19. Bf4 {[%emt 0:05:44]} Bd5 {[%emt 0:14:29]} 20. Nxe5 {[%emt 0:01:14]} Nxe5 {[%emt 0:00:24]} 21. Bxe5 {[%emt 0:00:13]} Qb7 {[%emt 0:00:24]} 22. Nf4 {[%emt 0:00:57]} Bc6 {[%emt 0:02:59]} 23. Bxb8 {[%emt 0:00:13]} Rxb8 {[%emt 0:00:18]} 24. Qe6+ {[%emt 0:00:44]} Rf7 {[%emt 0:01:04]} 25. f3 {[%emt 0:02:56]} Kh7 {[%emt 0:02:54]} 26. Qg6+ {[%emt 0:00:40]} Kg8 {[%emt 0:00:09]} 27. Re6 {[%emt 0:01:50]} Bd7 {[%emt 0:02:25]} 28. Re3 {[%emt 0:00:12]} Rf6 {[%emt 0:01:05]} 29. Qg3 {[%emt 0:00:48]} Bc6 {[%emt 0:00:28]} 30. Nh5 {[%emt 0:00:41]} Rf7 {[%emt 0:00:33]} 31. Rae1 {[%emt 0:00:35]} Kh7 {[%emt 0:01:00]} 32. Qf4 {[%emt 0:00:46]} Rd8 {[%emt 0:00:43]} 33. h4 {[%emt 0:00:25]} Qd7 {[%emt 0:01:28]} 34. Re6 {[%emt 0:01:19]} Bd5 {[%emt 0:00:40]} 35. R6e5 {[%emt 0:00:04]} Bxa2 {[%emt 0:00:42]} 36. d4 {[%emt 0:00:07]} Bd5 {[%emt 0:02:28]} 37. Qe3 {[%emt 0:00:30]} Qb7 {[%emt 0:01:22]} 38. Nf4 {[%emt 0:00:20]} Bc6 {[%emt 0:00:40]} 39. h5 {[%emt 0:00:23]} b5 {[%emt 0:01:04]} 40. Qd3 {[%emt 0:00:47]} Qc8 {[%emt 0:01:38]} 41. Ng6 {[%emt 0:32:01]} Bd7 {[%emt 0:30:50]} 42. Ne7 {[%emt 0:00:00]} Qc4 {[%emt 0:00:00]} 43. Qb1 {[%emt 0:00:00]} Rdf8 {[%emt 0:00:00]} 44. Ng6 {[%emt 0:00:00]} Rb8 {[%emt 0:00:00]} 45. Rc5 {[%emt 0:00:00]} Qb3 {[%emt 0:00:00]} 46. Ne5 {[%emt 0:00:00]} a6 {[%emt 0:00:00]} 47. Nxd7 {[%emt 0:00:00]} Rd8 {[%emt 0:00:00]} 48. Rxf5 {[%emt 0:00:00]} Kg8 {[%emt 0:00:00]} 49. Nc5 {[%emt 0:00:00]} Qc4 {[%emt 0:00:00]} 50. Rxf7 {[%emt 0:00:00]} Qxf7 {[%emt 0:00:00]} 51. Qg6 {[%emt 0:00:00]} Qc4 {[%emt 0:00:00]} 52. Ne6 {[%emt 0:00:00]} 1-0

[Event "44th Chess Olympiad Women 2022"]
[Site "Chennai"]
[Date "2022.08.02"]
[Round "5.46"]
[White "Darweeche, Roaa"]
[Black "Cadeau, Merisena"]
[Result "1/2-1/2"]
[ECO "A28"]
[WhiteElo "1548"]
[BlackElo "1439"]
[Annotator "NA RC COMBH"]
[PlyCount "140"]
[EventDate "2022.07.29"]
[EventType "team-tourn"]
[EventCountry "IND"]
[SourceTitle "playchess.com"]
[Source "ChessBase"]
[SourceQuality "1"]
[WhiteTeam "Lebanon"]
[BlackTeam "Haiti"]
[WhiteTeamCountry "LBN"]
[BlackTeamCountry "HAI"]
[TimeControl "40/5400+30:1800+30"]

1. Nf3 {[%emt 0:00:10]} Nc6 {[%emt 0:00:11]} 2. c4 {[%emt 0:00:10]} e5 {[%emt 0:00:35]} 3. d3 {[%emt 0:00:29]} Nf6 {[%emt 0:00:35]} 4. Nc3 {[%emt 0:00:15]} Bb4 {[%emt 0:02:23]} 5. Bd2 {[%emt 0:07:14]} d6 {[%emt 0:02:21]} 6. a3 {[%emt 0:00:47]} Bxc3 {[%emt 0:00:33]} 7. Bxc3 {[%emt 0:00:10]} O-O {[%emt 0:00:14]} 8. g3 {[%emt 0:02:23]} Re8 {[%emt 0:01:07]} 9. e4 {[%emt 0:21:56]} Bg4 {[%emt 0:00:20]} 10. h3 {[%emt 0:02:16]} Be6 {[%emt 0:04:52]} 11. Bg2 {[%emt 0:01:02]} Nd7 {[%emt 0:05:53]} 12. O-O {[%emt 0:07:33]} f5 {[%emt 0:02:38]} 13. exf5 {[%emt 0:08:08]} Bxf5 {[%emt 0:00:16]} 14. Nh4 {[%emt 0:00:47]} Be6 {[%emt 0:00:47]} 15. Nf3 {[%emt 0:11:05]} Rf8 {[%emt 0:07:48]} 16. b4 {[%emt 0:04:44]} Qf6 {[%emt 0:11:53]} 17. Nd2 {[%emt 0:11:47]} Qh6 {[%emt 0:02:45]} 18. Kh2 {[%emt 0:01:07]} g5 {[%emt 0:07:01]} 19. Ne4 {[%emt 0:02:15]} Nf6 {[%emt 0:14:45]} 20. Nxf6+ {[%emt 0:02:57]} Rxf6 {[%emt 0:00:15]} 21. g4 {[%emt 0:02:36]} Raf8 {[%emt 0:06:26]} 22. Qe2 {[%emt 0:01:54]} Rf4 {[%emt 0:00:39]} 23. f3 {[%emt 0:01:00]} Nd4 {[%emt 0:12:47]} 24. Bxd4 {[%emt 0:00:14]} exd4 {[%emt 0:00:30]} 25. Rae1 {[%emt 0:00:30]} R8f6 {[%emt 0:00:30]} 26. a4 {[%emt 0:01:33]} Qh4 {[%emt 0:06:56]} 27. Qf2 {[%emt 0:01:07]} Qxf2 {[%emt 0:01:33]} 28. Rxf2 {[%emt 0:00:01]} Kf7 {[%emt 0:00:41]} 29. Rfe2 {[%emt 0:00:08]} h6 {[%emt 0:01:21]} 30. b5 {[%emt 0:00:48]} b6 {[%emt 0:00:22]} 31. a5 {[%emt 0:00:18]} Ke7 {[%emt 0:00:38]} 32. Ra1 {[%emt 0:00:36]} Kd7 {[%emt 0:00:55]} 33. axb6 {[%emt 0:01:01]} axb6 {[%emt 0:00:08]} 34. Ra7 {[%emt 0:00:27]} Rf8 {[%emt 0:00:24]} 35. Rea2 {[%emt 0:00:11]} Rb8 {[%emt 0:00:28]} 36. Re2 {[%emt 0:01:33]} Rf6 {[%emt 0:00:21]} 37. Kg3 {[%emt 0:00:25]} d5 {[%emt 0:02:57]} 38. Ra4 {[%emt 0:00:21]} dxc4 {[%emt 0:00:20]} 39. dxc4 {[%emt 0:00:05]} Bf7 {[%emt 0:00:41]} 40. Re4 {[%emt 0:00:13]} Rd6 {[%emt 0:00:11]} 41. Bf1 {[%emt 0:30:23]} Bg6 {[%emt 0:30:38]} 42. Re1 {[%emt 0:00:23]} c5 {[%emt 0:00:18]} 43. Ra7+ {[%emt 0:01:41]} Kc8 {[%emt 0:00:15]} 44. Rd1 {[%emt 0:00:31]} Rb7 {[%emt 0:00:39]} 45. Ra3 {[%emt 0:01:09]} Re7 {[%emt 0:00:14]} 46. Kf2 {[%emt 0:00:50]} Rf6 {[%emt 0:00:21]} 47. Bd3 {[%emt 0:00:39]} Bxd3 {[%emt 0:00:27]} 48. Raxd3 {[%emt 0:00:03]} Rfe6 {[%emt 0:00:28]} 49. R3d2 {[%emt 0:00:46]} Re3 {[%emt 0:00:24]} 50. Rc1 {[%emt 0:01:01]} Rf7 {[%emt 0:02:17]} 51. Re2 {[%emt 0:00:22]} Rfxf3+ {[%emt 0:00:21]} 52. Ke1 {[%emt 0:00:12]} Rxe2+ {[%emt 0:00:18]} 53. Kxe2 {[%emt 0:00:00]} Rxh3 {[%emt 0:00:20]} 54. Rf1 {[%emt 0:01:20]} h5 {[%emt 0:01:05]} 55. gxh5 {[%emt 0:00:13]} g4 {[%emt 0:00:27]} 56. Rg1 {[%emt 0:00:37]} g3 {[%emt 0:00:24]} 57. Kf3 {[%emt 0:00:42]} d3 {[%emt 0:00:49]} 58. Ke3 {[%emt 0:00:23]} g2+ {[%emt 0:00:52]} 59. Kd2 {[%emt 0:00:10]} Rxh5 {[%emt 0:00:54]} 60. Rxg2 {[%emt 0:00:11]} Rh3 {[%emt 0:00:08]} 61. Rg5 {[%emt 0:00:52]} Kc7 {[%emt 0:00:14]} 62. Rd5 {[%emt 0:00:34]} Kc8 {[%emt 0:00:49]} 63. Rxd3 {[%emt 0:00:18]} Rxd3+ {[%emt 0:00:26]} 64. Kxd3 {[%emt 0:00:02]} Kd7 {[%emt 0:00:08]} 65. Ke4 {[%emt 0:00:04]} Ke6 {[%emt 0:00:13]} 66. Kf4 {[%emt 0:00:33]} Kf6 {[%emt 0:00:06]} 67. Ke4 {[%emt 0:00:27]} Ke6 {[%emt 0:00:06]} 68. Kf4 {[%emt 0:02:30]} Kf6 {[%emt 0:00:11]} 69. Ke4 {[%emt 0:00:09]} Ke6 {[%emt 0:00:18]} 70. Kf4 {[%emt 0:00:40]} Kf6 {[%emt 0:00:27]} 1/2-1/2

[Event "44th Chess Olympiad Women 2022"]
[Site "Chennai"]
[Date "2022.08.02"]
[Round "5.46"]
[White "Jonet, Davena"]
[Black "Grishina, Alexandra"]
[Result "0-1"]
[ECO "B13"]
[WhiteElo "1458"]
[BlackElo "2012"]
[Annotator "NA RC"]
[PlyCount "50"]
[EventDate "2022.07.29"]
[EventType "team-tourn"]
[EventCountry "IND"]
[SourceTitle "playchess.com"]
[Source "ChessBase"]
[SourceQuality "1"]
[WhiteTeam "Haiti"]
[BlackTeam "Lebanon"]
[WhiteTeamCountry "HAI"]
[BlackTeamCountry "LBN"]
[TimeControl "40/5400+30:1800+30"]

1. e4 {[%emt 0:00:03]} c6 {[%emt 0:00:16]} 2. Nf3 {[%emt 0:01:20]} d5 {[%emt 0:01:06]} 3. exd5 {[%emt 0:02:41]} cxd5 {[%emt 0:02:15]} 4. d4 {[%emt 0:00:43]} Nc6 {[%emt 0:01:50]} 5. Be2 {[%emt 0:05:35]} Nf6 {[%emt 0:04:10]} 6. c3 {[%emt 0:06:29]} Bf5 {[%emt 0:08:41]} 7. Bf4 {[%emt 0:04:03]} e6 {[%emt 0:11:43]} 8. Bd3 {[%emt 0:18:08]} Bxd3 {[%emt 0:06:35]} 9. Qxd3 {[%emt 0:00:51]} Qb6 {[%emt 0:02:49]} 10. b4 {[%emt 0:08:09]} Be7 {[%emt 0:03:44]} 11. O-O {[%emt 0:07:35]} O-O {[%emt 0:04:40]} 12. a3 {[%emt 0:06:26]} Rac8 {[%emt 0:01:57]} 13. Rc1 {[%emt 0:04:06]} Ne4 {[%emt 0:06:28]} 14. c4 {[%emt 0:03:29]} Qd8 {[%emt 0:07:36]} 15. c5 {[%emt 0:04:43]} Bg5 {[%emt 0:02:47]} 16. Nxg5 {[%emt 0:02:58]} Nxg5 {[%emt 0:00:21]} 17. f3 {[%emt 0:01:02]} h6 {[%emt 0:15:40]} 18. Rd1 {[%emt 0:05:03]} Qf6 {[%emt 0:02:04]} 19. Qe3 {[%emt 0:02:09]} Rfe8 {[%emt 0:02:32]} 20. Nc3 {[%emt 0:04:44]} Qg6 {[%emt 0:00:26]} 21. Re1 {[%emt 0:01:46]} a6 {[%emt 0:00:36]} 22. b5 {[%emt 0:02:15]} Na5 {[%emt 0:00:29]} 23. bxa6 {[%emt 0:01:17]} bxa6 {[%emt 0:00:04]} 24. Na4 {[%emt 0:01:00]} Nc4 {[%emt 0:00:13]} 25. Qc3 {[%emt 0:00:55]} Nh3+ {[%emt 0:06:58]} 0-1